bitfinex-derivatives/quotes_SOLF0:USTF0_20250310
["timestamp","ask_amount","ask_price","bid_price","bid_amount"]
[1741621662468,57.4579,122.95,122.86,56.28347561]
[1741621662668,4.082,122.95,122.86,56.28347561]
[1741621662868,56.28347561,122.94,122.84,101.52347561]
[1741621663763,56.28347561,122.94,122.88,0.05179054]
[1741621664069,101.52347561,122.94,122.88,0.05179054]
[1741621664766,56.28347561,122.92,122.84,45.24]
[1741621664958,56.28347561,122.92,122.8,56.28347561]
[1741621665159,56.28347561,122.92,122.82,45.24]
[1741621665663,101.52347561,122.94,122.82,101.52347561]
[1741621665963,0.05245411,122.89,122.87,0.0576539]
[1741621666163,0.05245411,122.89,122.87,45.2976539]
[1741621666369,8.1366,122.94,122.88,8.1399]
[1741621666968,0.05355409,122.92,122.9,0.05616706]
[1741621667361,192.0,123.0,122.9,0.05616706]
[1741621667362,268.58,123.02,122.91,101.52347561]
[1741621667670,268.58,123.02,122.92,62.0]
[1741621667970,324.86347561,123.02,122.91,45.24]
[1741621668667,268.58,123.02,122.95,0.06227292]
[1741621669170,324.86347561,123.02,122.95,0.06227292]
[1741621669467,8.1347,122.97,122.95,0.06227292]
[1741621669866,324.86347561,123.02,122.95,0.06227292]
[1741621670066,101.50347561,123.0,122.95,0.06227292]
[1741621670467,45.22,123.0,122.95,0.06227292]
[1741621670665,56.28347561,122.99,122.95,0.06227292]
[1741621670866,56.28347561,122.99,122.91,45.24]
[1741621671172,60.39357561,123.01,122.91,101.52347561]
[1741621671368,4.1101,123.01,122.91,101.52347561]
[1741621671575,8.1364,122.94,122.89,56.28347561]
[1741621671773,56.28347561,122.99,122.88,45.22]
[1741621672071,0.05825452,122.93,122.9,0.05634896]
[1741621672275,56.28347561,122.99,122.88,45.22]
[1741621672469,0.05136302,122.93,122.9,0.06251001]
[1741621672665,0.05136302,122.93,122.88,45.22]
[1741621672666,56.28347561,122.99,122.88,45.22]
[1741621672868,0.05453077,122.93,122.9,0.06072893]
[1741621673065,56.28347561,122.99,122.88,45.22]
[1741621673270,0.05321807,122.93,122.9,0.05502129]
[1741621673477,56.28347561,122.99,122.89,56.28347561]
[1741621673771,105.61357561,123.01,122.91,56.28347561]
[1741621673976,0.05281099,122.95,122.92,45.22]
[1741621674376,49.3301,123.01,122.92,45.28226259]
[1741621674577,0.05874556,122.95,122.92,45.28226259]
[1741621674778,105.61357561,123.01,122.95,0.05854182]
[1741621675173,56.33890082,122.99,122.89,101.50347561]
[1741621675475,56.28347561,122.99,122.89,101.50347561]
[1741621675675,56.28347561,122.99,122.89,45.22]
[1741621676181,56.28347561,122.99,122.87,56.28347561]
[1741621676475,0.05566348,122.94,122.92,0.06241445]
[1741621676679,12.4449,122.94,122.85,49.2717]
[1741621676873,56.28347561,122.93,122.82,45.2]
[1741621677080,56.28347561,122.91,122.81,56.28347561]
[1741621677280,56.28347561,122.91,122.81,45.2]
[1741621677683,45.2,122.92,122.78,8.3072]
[1741621677684,56.28347561,122.89,122.78,49.3752]
[1741621677885,0.05451343,122.87,122.85,0.05670572]
[1741621678088,0.05451343,122.87,122.78,49.3752]
[1741621678383,8.1416,122.86,122.85,0.06215834]
[1741621678585,0.06260414,122.84,122.78,49.3752]
[1741621678884,45.2,122.88,122.8,0.05935317]
[1741621679087,0.06000808,122.82,122.78,4.1752]
[1741621679382,8.1407,122.88,122.83,8.203453]
[1741621679581,101.50347561,122.91,122.8,45.22]
[1741621679782,56.28347561,122.89,122.8,45.22]
[1741621679978,8.1405,122.88,122.84,8.1427]
[1741621680186,101.50347561,122.91,122.8,45.22]
[1741621680382,101.50347561,122.91,122.84,0.0519972]
[1741621680587,0.06023368,122.87,122.84,0.0519972]
[1741621680789,0.06023368,122.87,122.84,8.1947972]
[1741621680988,0.06023368,122.87,122.84,0.0519972]
[1741621681184,101.56370929,122.87,122.76,56.28347561]
[1741621681385,8.4788,122.86,122.76,101.50347561]
[1741621681684,56.28347561,122.83,122.71,56.28347561]
[1741621681881,45.22,122.83,122.73,56.28347561]
[1741621682082,53.6988,122.86,122.77,56.28347561]
[1741621682277,53.6988,122.86,122.77,101.5565507]
[1741621682485,56.28347561,122.85,122.77,45.22]
[1741621682691,0.05985005,122.83,122.75,56.28347561]
[1741621682988,0.05985005,122.83,122.82,8.1442]
[1741621683187,562.02347561,122.93,122.81,56.28347561]
[1741621683388,8.1389,122.9,122.86,8.1412]
[1741621683588,8.484,122.92,122.83,101.50347561]
[1741621684289,8.484,122.92,122.84,62.0]
[1741621684486,56.28347561,122.91,122.8,45.22]
[1741621685284,56.28347561,122.91,122.84,0.05334931]
[1741621685285,0.06030975,122.87,122.84,0.05334931]
[1741621687189,0.06030975,122.87,122.85,8.1419]
[1741621687390,0.06030975,122.87,122.84,62.05334931]
[1741621688396,0.06030975,122.87,122.86,8.1416]
[1741621688890,192.0,122.93,122.85,56.28347561]
[1741621689099,4.0912,122.95,122.87,56.28347561]
[1741621689384,12.2273,122.95,122.91,8.1383]
[1741621689689,4.0912,122.95,122.85,56.28347561]
[1741621689884,8.1372,122.93,122.89,8.1395]
[1741621690087,0.05905908,122.91,122.89,0.05607407]
[1741621691382,0.05905908,122.91,122.84,62.0]
[1741621691582,8.19755908,122.91,122.83,101.48347561]
[1741621691788,0.05905908,122.91,122.83,101.48347561]
[1741621691991,49.2912,122.95,122.83,101.48347561]
[1741621692190,4.0912,122.95,122.92,8.1372]
[1741621692384,4.0317,122.96,122.89,56.28347561]
[1741621692586,0.05423769,122.95,122.92,0.05174154]
[1741621692894,0.05423769,122.95,122.94,8.1363]
[1741621693389,0.05423769,122.95,122.92,0.05174154]
[1741621694486,0.05423769,122.95,122.92,62.05174154]
[1741621694889,0.05423769,122.95,122.94,8.1363]
[1741621695388,3.769e-05,122.95,122.94,8.1363]
[1741621698987,3.769e-05,122.95,122.92,45.23174154]
[1741621699497,3.769e-05,122.95,122.94,8.1363]
[1741621701302,8.13573769,122.95,122.92,0.05174154]
[1741621701598,3.769e-05,122.95,122.92,0.05174154]
[1741621701806,3.769e-05,122.95,122.94,8.1363]
[1741621704199,3.769e-05,122.95,122.93,8.1366]
[1741621704498,3.769e-05,122.95,122.92,0.05174154]
[1741621704698,3.769e-05,122.95,122.94,8.1363]
[1741621711602,4.0056,123.02,123.0,8.1323]
[1741621711803,4.0056,123.02,122.94,4.2167]
[1741621712502,12.1369,123.02,122.99,8.1329]
[1741621712800,12.19020221,123.02,122.97,0.05163305]
[1741621712999,45.14,123.01,122.97,0.05163305]
[1741621713202,45.19185224,123.01,122.97,0.05163305]
[1741621713501,0.05185224,123.01,122.97,0.05163305]
[1741621713700,0.05185224,123.01,122.99,8.1326]
[1741621713994,0.05185224,123.01,122.97,45.19163305]
[1741621714200,4.1119,123.06,122.98,34.28509151]
[1741621714400,8.2616,123.09,123.02,34.28509151]
[1741621714600,4.1119,123.12,123.02,79.42509151]
[1741621714804,48.67472936,123.13,123.04,34.28509151]
[1741621715002,48.67472936,123.13,123.06,34.28509151]
[1741621715202,48.67472936,123.13,123.06,79.40509151]
[1741621715400,48.67472936,123.13,123.08,0.05373189]
[1741621715797,56.79892936,123.13,123.08,0.05373189]
[1741621716206,44.43562936,123.13,123.08,0.05373189]
[1741621716803,8.1225,123.15,123.09,8.1259]
[1741621717003,272.4919,123.16,123.09,8.1259]
[1741621717308,280.6138,123.16,123.11,0.0529493]
[1741621717507,8.3664,123.18,123.11,55.62287378]
[1741621717708,49.3446,123.21,123.11,55.62287378]
[1741621718010,49.3446,123.21,123.11,63.76652448]
[1741621718308,80.3470122,123.23,123.15,55.6224395]
[1741621718508,80.3470122,123.23,123.15,100.7224395]
[1741621718509,72.0563122,123.23,123.15,100.7224395]
[1741621718708,72.0563122,123.23,123.15,100.66992448]
[1741621718903,72.0563122,123.23,123.18,0.05820421]
[1741621719811,55.56992448,123.22,123.12,53.2242]
[1741621720003,45.1,123.21,123.12,45.1]
[1741621720206,45.1,123.24,123.13,55.56992448]
[1741621720403,4.2246,123.25,123.15,55.56992448]
[1741621720710,4.2246,123.25,123.17,55.56992448]
[1741621721011,0.06130622,123.21,123.2,8.1187]
[1741621721215,45.1,123.28,123.2,45.08]
[1741621721613,55.56992448,123.29,123.2,45.08]
[1741621721815,321.6629,123.3,123.2,45.08]
[1741621722014,321.6629,123.3,123.2,107.08]
[1741621722215,55.56992448,123.29,123.2,107.08]
[1741621722517,55.56992448,123.29,123.24,0.05553826]
[1741621722708,8.1151,123.27,123.24,0.05553826]
[1741621722913,45.08,123.28,123.24,0.05553826]
[1741621723212,55.56992448,123.25,123.14,45.08]
[1741621723411,55.56992448,123.23,123.11,108.82652448]
[1741621723714,53.1481,123.22,123.11,108.82652448]
[1741621723916,8.1206,123.18,123.11,108.82652448]
[1741621724114,53.1481,123.22,123.11,108.82652448]
[1741621724313,0.05883396,123.16,123.13,0.05939426]
[1741621724712,100.60992448,123.21,123.07,55.56992448]
[1741621724916,0.05193884,123.16,123.13,0.05702332]
[1741621725214,0.05193884,123.16,123.11,45.04]
[1741621725605,0.05193884,123.16,123.13,0.0610574]
[1741621726208,0.05193884,123.16,123.13,8.1845574]
[1741621726413,0.05193884,123.16,123.13,0.0610574]
[1741621726813,8.17413884,123.16,123.13,0.0610574]
[1741621727014,0.05193884,123.16,123.13,0.0610574]
[1741621727211,55.56992448,123.23,123.13,0.0610574]
[1741621727416,55.56992448,123.37,123.21,55.56992448]
[1741621727616,12.6754,123.34,123.27,55.56992448]
[1741621727809,381.26532448,123.34,123.21,55.56992448]
[1741621728008,55.56992448,123.31,123.18,55.56992448]
[1741621728212,45.04,123.3,123.18,55.56992448]
[1741621728414,55.56992448,123.31,123.18,55.56992448]
[1741621728709,55.56992448,123.31,123.23,0.06046576]
[1741621728921,63.68192448,123.31,123.23,0.06046576]
[1741621729115,55.56992448,123.31,123.22,45.04]
[1741621729315,55.56992448,123.31,123.26,0.05314111]
[1741621729822,55.56992448,123.31,123.2,55.56992448]
[1741621730120,55.56992448,123.31,123.19,45.04]
[1741621730121,237.04,123.33,123.22,55.56992448]
[1741621730315,292.60992448,123.33,123.23,45.02]
[1741621730921,0.06127858,123.29,123.27,0.05755667]
[1741621732612,0.06127858,123.29,123.16,4.1191]
[1741621732613,261.54,123.28,123.13,8.1235]
[1741621732823,55.56992448,123.21,123.09,67.59882448]
[1741621733123,316.8676,123.2,123.06,100.56992448]
[1741621733319,55.56992448,123.18,123.07,5.68688848]
[1741621733519,55.56992448,123.18,123.08,5.68688848]
[1741621733718,55.56992448,123.18,123.06,55.56992448]
[1741621733916,0.06143271,123.14,123.11,0.05398601]
[1741621734118,45.06143271,123.14,123.11,0.05398601]
[1741621734916,45.06143271,123.14,123.03,63.64222448]
[1741621735326,8.1262,123.1,123.01,45.0]
[1741621735517,55.56992448,123.09,122.97,55.56992448]
[1741621735719,63.70092448,123.09,122.98,67.69707641]
[1741621736025,63.70092448,123.09,122.98,62.0]
[1741621736218,0.05490884,123.05,123.02,0.05594716]
[1741621736415,45.02,123.04,123.02,0.05594716]
[1741621736619,45.02,123.04,122.98,62.0]
[1741621736819,45.02,123.04,122.88,55.56992448]
[1741621736820,45.02,123.04,122.93,55.56992448]
[1741621737125,312.92,123.04,122.94,5.70749663]
[1741621737326,312.92,123.04,122.93,55.56992448]
[1741621737519,312.92,123.04,122.94,5.70670068]
[1741621737714,312.92,123.04,122.93,55.56992448]
[1741621737915,0.06106706,123.0,122.98,0.0597596]
[1741621741129,45.08106706,123.0,122.94,8.1356]
[1741621741524,53.21386706,123.0,122.94,8.1356]
[1741621741918,45.08106706,123.0,122.94,8.1356]
[1741621742327,100.65099154,123.0,122.85,192.0]
[1741621742530,55.56992448,122.98,122.86,61.27724003]
[1741621742725,276.2344,122.97,122.92,8.1372]
[1741621743030,268.1,122.97,122.87,55.56992448]
[1741621743326,45.04,122.96,122.87,55.56992448]
[1741621743526,53.3189,122.99,122.91,55.56992448]
[1741621743729,192.0,123.03,122.93,55.56992448]
[1741621743925,192.0,123.03,122.92,45.04]
[1741621744119,55.56992448,122.98,122.86,45.04]
[1741621744323,8.1368,122.94,122.89,8.1395]
[1741621744524,53.5333,122.97,122.87,117.56992448]
[1741621744833,0.05287963,122.93,122.91,0.06142384]
[1741621745326,0.05287963,122.93,122.91,55.63134832]
[1741621745523,8.4933,123.03,122.92,45.04]
[1741621745724,8.4933,123.03,122.94,55.56992448]
[1741621746028,8.4933,123.03,122.95,8.1354]
[1741621746231,8.4933,123.03,122.92,100.60992448]
[1741621746430,4.1955,123.02,122.92,100.60992448]
[1741621746629,0.05165531,122.99,122.96,0.05743461]
[1741621748328,0.05165531,122.99,122.88,45.06]
[1741621748529,55.56992448,122.98,122.89,62.0]
[1741621748731,8.1345,122.97,122.93,8.1369]
[1741621748932,100.60992448,123.0,122.89,117.56992448]
[1741621749129,8.1347,122.97,122.89,117.56992448]
[1741621749334,0.053667,122.96,122.93,0.05382203]
[1741621749628,8.188767,122.96,122.93,0.05382203]
[1741621749930,0.053667,122.96,122.93,0.05382203]
[1741621750930,8.1362,122.95,122.93,0.05382203]
[1741621751427,0.053667,122.96,122.93,0.05382203]
[1741621751829,100.68359148,122.96,122.85,55.56992448]
[1741621752027,55.56992448,122.92,122.81,63.69602448]
[1741621752230,55.56992448,122.9,122.78,104.75312448]
[1741621752432,8.1413,122.87,122.83,8.1435]
[1741621752642,8.1413,122.87,122.78,104.75312448]
[1741621752643,268.26,122.9,122.82,45.06]
[1741621752828,268.26,122.9,122.83,62.0]
[1741621753030,0.05202989,122.87,122.85,0.05199631]
[1741621754528,0.05202989,122.87,122.78,4.1232]
[1741621754733,100.62992448,122.88,122.78,4.1232]
[1741621755032,45.06,122.88,122.79,55.56992448]
[1741621755235,53.2004,122.88,122.79,55.56992448]
[1741621755434,45.06,122.88,122.79,55.56992448]
[1741621755737,45.06,122.88,122.82,0.0598211]
[1741621755738,0.06123402,122.85,122.82,0.0598211]
[1741621756333,0.06123402,122.85,122.83,62.0]
[1741621756840,0.00499217,122.85,122.84,8.1429]
[1741621757040,0.00499217,122.85,122.83,62.0]
[1741621757440,45.08,122.84,122.82,0.0598211]
[1741621757938,8.1436,122.83,122.82,0.0598211]
[1741621758237,45.08,122.84,122.74,8.2219]
[1741621758436,8.1456,122.8,122.73,55.56992448]
[1741621758638,4.3149,122.83,122.73,55.56992448]
[1741621758935,8.1444,122.82,122.78,8.1466]
[1741621759142,4.3149,122.83,122.73,55.56992448]
[1741621759442,0.06222387,122.79,122.77,8.20688027]
[1741621759640,0.06222387,122.79,122.77,0.05998027]
[1741621760135,45.08,122.84,122.77,0.05998027]
[1741621760336,45.08,122.88,122.78,117.56992448]
[1741621760744,8.534,122.89,122.78,117.56992448]
[1741621761037,53.614,122.89,122.78,117.56992448]
[1741621761239,61.7542,122.89,122.8,55.56992448]
[1741621761434,61.7542,122.89,122.82,0.06044336]
[1741621761435,0.05952251,122.85,122.82,0.06044336]
[1741621762340,100.70944699,122.85,122.75,45.08]
[1741621762640,100.70944699,122.85,122.74,55.56992448]
[1741621762641,100.64992448,122.85,122.74,55.56992448]
[1741621762939,45.08,122.85,122.74,55.56992448]
[1741621763546,0.05248405,122.81,122.78,0.05667457]
[1741621763842,8.1456,122.8,122.72,8.3304]
[1741621764035,45.08,122.81,122.72,8.3304]
[1741621764439,45.08,122.81,122.73,62.0]
[1741621764644,4.2264,122.82,122.74,55.56992448]
[1741621764939,0.05433427,122.79,122.77,0.05241279]
[1741621765140,0.05433427,122.79,122.7,55.56992448]
[1741621765344,0.05433427,122.79,122.72,45.08]
[1741621765540,8.1473,122.78,122.74,8.1492]
[1741621765741,8.1473,122.78,122.72,45.08]
[1741621765742,4.2714,122.81,122.72,45.08]
[1741621766545,8.20072853,122.78,122.75,0.05882763]
[1741621766938,45.13342853,122.78,122.68,55.56992448]
[1741621767133,45.13342853,122.78,122.67,55.56992448]
[1741621767134,59.85602448,122.77,122.67,55.56992448]
[1741621767340,55.56992448,122.75,122.65,12.2856]
[1741621767645,4.2724,122.74,122.65,12.2856]
[1741621767840,4.2724,122.74,122.67,55.56992448]
[1741621768047,12.422,122.74,122.69,8.1528]
[1741621768242,0.05394727,122.72,122.69,0.05648183]
[1741621769146,0.05394727,122.72,122.71,8.1515]
[1741621769539,4.2724,122.79,122.71,8.1515]
[1741621769540,4.2724,122.79,122.71,100.66992448]
[1741621770745,9.319e-05,122.76,122.75,63.71882448]
[1741621770944,9.319e-05,122.76,122.75,108.79882448]
[1741621771238,8.1424,122.85,122.8,8.1451]
[1741621771439,4.3009,122.86,122.77,55.56992448]
[1741621771643,4.3009,122.86,122.79,55.56992448]
[1741621771845,192.0,122.91,122.79,55.56992448]
[1741621771846,258.77156867,122.91,122.8,62.0]
[1741621772042,0.05720292,122.84,122.83,8.143]
[1741621772246,45.1,122.9,122.8,62.0]
[1741621772438,45.1,122.9,122.64,16.3112]
[1741621772439,55.56992448,122.82,122.64,16.3112]
[1741621772639,55.56992448,122.76,122.64,55.56992448]
[1741621772843,55.62382673,122.74,122.63,8.1501]
[1741621773042,268.7,122.74,122.64,55.56992448]
[1741621773238,313.78,122.74,122.64,55.56992448]
[1741621773744,8.1509,122.72,122.64,55.56992448]
[1741621773940,313.78,122.74,122.63,8.1501]
[1741621774151,0.05676222,122.69,122.67,0.0578066]
[1741621774347,317.97,122.74,122.67,0.0578066]
[1741621774545,0.05176367,122.69,122.67,0.0578066]
[1741621774747,317.97,122.74,122.67,0.0578066]
[1741621774948,0.05755187,122.69,122.67,0.0578066]
[1741621775250,0.05887751,122.69,122.67,0.0578066]
[1741621775450,0.05887751,122.69,122.68,62.0]
[1741621775946,2.5686337,124.03,122.68,62.0]
[1741621775947,4.19,122.79,122.68,165.10992448]
[1741621776146,4.19,122.79,122.7,55.56992448]
[1741621776349,4.19,122.79,122.74,8.1491]
[1741621776748,4.19,122.79,122.75,8.1484]
[1741621776949,0.05745801,122.78,122.75,0.05925206]
[1741621777345,0.05745801,122.78,122.75,8.20765206]
[1741621778146,0.05745801,122.78,122.75,0.05925206]
[1741621779149,272.9795,122.85,122.76,112.80004556]
[1741621779348,272.9795,122.85,122.77,5.72004556]
[1741621779555,272.9795,122.85,122.76,45.08]
[1741621779759,55.56992448,122.84,122.76,45.08]
[1741621780157,63.71342448,122.84,122.76,45.08]
[1741621780350,0.05305041,122.81,122.8,8.1455]
[1741621782165,0.05305041,122.81,122.8,13.87480285]
[1741621782364,8.1417,122.86,122.82,8.1439]
[1741621782561,328.62882448,122.9,122.83,5.7296609]
[1741621782863,328.62882448,122.9,122.84,5.72812686]
[1741621783064,328.62882448,122.9,122.81,107.08]
[1741621783269,328.62882448,122.9,122.84,8.1425]
[1741621783572,0.05860601,122.87,122.84,0.05615743]
[1741621783869,0.05860601,122.87,122.84,8.19875743]
[1741621784265,0.05860601,122.87,122.85,5.73452995]
[1741621784471,0.05860601,122.87,122.84,8.19875743]
[1741621784670,0.05860601,122.87,122.85,5.73371517]
[1741621784871,0.05860601,122.87,122.84,0.05615743]
[1741621785167,0.05860601,122.87,122.84,8.19865743]
[1741621785374,0.05860601,122.87,122.84,0.05615743]
[1741621785666,8.1422,122.85,122.84,0.05615743]
[1741621785867,55.56992448,122.86,122.84,0.05615743]
[1741621786065,45.11860601,122.87,122.84,0.05615743]
[1741621786265,53.25980601,122.87,122.84,0.05615743]
[1741621786669,45.11860601,122.87,122.84,0.05615743]
[1741621786873,8.1416,122.86,122.84,0.05615743]
[1741621787070,55.56992448,122.86,122.84,0.05615743]
[1741621788873,55.56992448,122.86,122.74,63.87392448]
[1741621789070,55.56992448,122.85,122.75,45.04]
[1741621789271,100.62992448,122.87,122.76,55.56992448]
[1741621789671,45.06,122.87,122.76,55.56992448]
[1741621790069,0.05182072,122.83,122.8,0.06225339]
[1741621790675,0.05182072,122.83,122.82,8.1442]
[1741621791876,0.05182072,122.83,122.82,70.1442]
[1741621792575,8.1416,122.86,122.82,62.0]
[1741621792770,8.1416,122.86,122.8,8.36585339]
[1741621792771,8.1416,122.86,122.8,8.3036]
[1741621793080,8.1416,122.86,122.82,8.1437]
[1741621793283,8.1416,122.86,122.8,8.3036]
[1741621793674,8.1416,122.86,122.82,8.1436]
[1741621794378,0.0557958,122.85,122.83,0.05434389]
[1741621794677,8.1429,122.84,122.83,0.05434389]
[1741621794882,0.0557958,122.85,122.83,0.05434389]
[1741621795073,0.0557958,122.85,122.83,8.19764389]
[1741621795375,0.0557958,122.85,122.83,0.05434389]
[1741621795575,0.0557958,122.85,122.84,8.1429]
[1741621795776,0.0557958,122.85,122.84,70.1429]
[1741621798983,328.62882448,122.9,122.84,62.0]
[1741621799274,324.30992448,122.9,122.84,62.0]
[1741621799581,324.30992448,122.9,122.82,45.02]
[1741621799781,268.74,122.9,122.82,45.02]
[1741621800079,0.0595611,122.87,122.85,0.06274372]
[1741621800581,0.0595611,122.87,122.86,8.1412]
[1741621800778,8.2004611,122.87,122.85,0.06274372]
[1741621800973,0.0595611,122.87,122.85,0.06274372]
[1741621801180,0.0595611,122.87,122.79,45.0]
[1741621801477,45.0,122.89,122.8,49.1862]
[1741621801784,268.74,122.9,122.82,55.56992448]
[1741621801981,268.74,122.9,122.8,104.75612448]
[1741621802185,8.295,122.94,122.8,104.75612448]
[1741621802186,55.56992448,122.96,122.92,8.1371]
[1741621802481,0.05592982,122.95,122.88,45.0]
[1741621802676,63.86492448,122.98,122.88,45.0]
[1741621802677,3.9459,122.99,122.92,0.05812394]
[1741621802984,11.20164419,123.0,122.93,45.0]
[1741621803186,0.05694278,122.97,122.94,0.05645028]
[1741621803390,4.278e-05,122.97,122.94,0.05645028]
[1741621803680,11.20164419,123.03,122.94,70.47947476]
[1741621803883,11.20164419,123.03,122.96,55.56992448]
[1741621804083,11.20164419,123.03,122.97,45.0]
[1741621804282,11.20164419,123.03,123.02,8.131]
[1741621804676,11.20164419,123.03,123.01,0.05658394]
[1741621804876,88.18223873,123.04,123.03,8.1303]
[1741621805081,61.36911746,123.04,123.03,8.1303]
[1741621805476,5.13531746,123.04,123.03,8.1303]
[1741621805683,1.746e-05,123.04,123.03,8.1303]
[1741621805880,1.746e-05,123.04,123.02,45.0]
[1741621806077,2.018e-05,123.05,123.02,100.56992448]
[1741621806384,83.66302499,123.06,123.05,8.129]
[1741621806576,83.66302499,123.06,123.05,70.129]
[1741621807085,36.77872499,123.06,123.05,72.569]
[1741621807386,4.0307,123.15,123.02,45.0]
[1741621807578,0.05350169,123.07,123.04,0.054018]
[1741621807774,59.59972448,123.13,123.02,100.56992448]
[1741621807975,0.05481607,123.07,123.04,0.05224368]
[1741621808182,59.59972448,123.13,123.02,100.56992448]
[1741621808377,0.05373686,123.07,123.04,0.05574201]
[1741621808582,55.56992448,123.07,122.99,44.94]
[1741621808775,55.62941584,123.07,123.04,0.05757365]
[1741621808980,55.56992448,123.05,122.94,236.94]
[1741621809181,55.56992448,123.01,122.94,44.94]
[1741621809388,55.56992448,123.01,122.94,53.0757]
[1741621809581,55.56992448,123.01,122.94,44.94]
[1741621809882,55.56992448,123.01,122.88,247.56992448]
[1741621810082,55.62588815,122.99,122.89,44.94]
[1741621810279,55.56992448,122.99,122.9,62.0]
[1741621810586,55.56992448,122.97,122.89,44.94]
[1741621810779,55.56992448,122.95,122.89,44.94]
[1741621811281,55.63027582,122.93,122.87,87.06610421]
[1741621811781,0.06035134,122.93,122.87,87.06610421]
[1741621811989,0.06035134,122.93,122.87,95.20640421]
[1741621812287,0.06035134,122.93,122.87,87.06610421]
[1741621812589,0.06035134,122.93,122.89,0.05242743]
[1741621813387,55.63027582,122.93,122.89,0.05242743]
[1741621814189,0.06035134,122.93,122.89,0.05242743]
[1741621814684,55.63027582,122.93,122.89,0.05242743]
[1741621814890,63.70862448,122.91,122.83,44.92]
[1741621815187,4.2242,122.92,122.83,44.92]
[1741621815990,0.05399836,122.89,122.86,0.06231128]
[1741621816685,0.05399836,122.89,122.87,62.0]
[1741621816983,0.05399836,122.89,122.86,0.06231128]
[1741621818091,0.05399836,122.89,122.88,8.1403]
[1741621818391,9.836e-05,122.89,122.88,8.1403]
[1741621818889,9.836e-05,122.89,122.88,66.15022448]
[1741621819086,55.56992448,123.02,122.88,113.57984896]
[1741621819287,55.56992448,123.02,122.89,55.56992448]
[1741621819483,55.56992448,123.02,122.87,236.92]
[1741621819484,55.56992448,123.0,122.87,236.92]
[1741621819693,8.1348,122.97,122.87,292.48992448]
[1741621819988,4.1986,122.99,122.87,292.48992448]
[1741621819989,4.1986,122.99,122.91,55.56992448]
[1741621820295,0.06041563,122.93,122.92,44.92]
[1741621820495,4.1986,122.98,122.92,44.92]
[1741621820696,0.05704099,122.94,122.92,44.92]
[1741621820989,0.05704099,122.94,122.92,44.97854387]
[1741621821589,0.05704099,122.94,122.74,8.16]
[1741621821590,55.62696547,122.94,122.83,55.56992448]
[1741621821989,55.56992448,122.94,122.83,55.56992448]
[1741621822194,55.56992448,122.92,122.82,44.92]
[1741621822386,48.9824,122.91,122.81,100.48992448]
[1741621822591,48.9824,122.91,122.84,8.1424]
[1741621822890,0.05690145,122.87,122.85,0.06209247]
[1741621823087,8.19830145,122.87,122.83,8.1435]
[1741621823287,0.05690145,122.87,122.8,62.0]
[1741621823588,0.05972842,122.85,122.82,8.144]
[1741621823889,0.05972842,122.85,122.82,8.19547473]
[1741621824097,8.20212842,122.85,122.82,0.05147473]
[1741621824391,0.05972842,122.85,122.82,0.05147473]
[1741621824993,0.05972842,122.85,122.78,87.06610421]
[1741621825391,4.40522842,122.85,122.78,87.06610421]
[1741621825895,4.40522842,122.85,122.79,100.48992448]
[1741621826096,0.05972842,122.85,122.8,0.05910199]
[1741621826789,44.92,122.84,122.8,0.05910199]
[1741621826995,44.92,122.84,122.74,44.92]
[1741621827494,44.92,122.84,122.75,117.56992448]
[1741621827891,44.92,122.84,122.81,8.1445]
[1741621828199,4.3455,122.88,122.82,44.92]
[1741621828401,4.2214,122.89,122.83,55.56992448]
[1741621828896,12.3614,122.89,122.84,8.1425]
[1741621829097,4.2214,122.89,122.84,8.1425]
[1741621829290,4.2214,122.89,122.82,44.92]
[1741621829497,8.20119774,122.88,122.85,0.05409739]
[1741621830394,8.1413,122.87,122.85,0.05409739]
[1741621830596,0.06059774,122.88,122.85,0.05409739]
[1741621830796,8.1413,122.87,122.85,0.05409739]
[1741621830997,0.06059774,122.88,122.85,0.05409739]
[1741621831193,55.63052222,122.88,122.82,62.0]
[1741621831400,55.56992448,122.84,122.73,55.56992448]
[1741621831596,3.9464,122.83,122.74,44.92]
[1741621832301,55.56992448,122.82,122.71,55.56992448]
[1741621832495,0.05147544,122.8,122.77,0.05340865]
[1741621832694,3.9512,122.81,122.77,0.0619711]
[1741621832890,0.05976406,122.8,122.77,0.0619711]
[1741621834289,8.1469,122.78,122.77,62.0619711]